Cogmind - Beta 13 @@@ ROGUE MODE // 2024.07.31 @ 22:46:04 Player: Gordubaradu Result: Destroyed by S-10 Pest with Light Assault Rifle Performance ------------- Evolutions (1) 500 Regions Visited (2) 400 Robots Destroyed (19) 95 Value Destroyed (349) 349 Prototype IDs (0) 0 Alien Tech Used (0) 0 Bonus (0) 0 TOTAL SCORE: 1344 Bonus ------- None Cogmind --------- Core Integrity 0/400 Matter 294/300 Energy 100/100 System Corruption 0% Temperature Cool (0) Movement Core (450) Ox8 Location -9/Materials Parts ------- > --- POWER (2) -------- (None) > --- PROPULSION (2) --- (None) > --- UTILITY (3) ------ Small Storage Unit Large Storage Unit Improved Terrain Scanner > --- WEAPON (2) ------- (None) > --- INVENTORY (15) --- Heat Sink Medium Matter Pod (100) Peak State ------------ > --- POWER ------------ Improved Ion Engine > --- PROPULSION ------- Aluminum Leg Aluminum Leg > --- UTILITY ---------- Small Storage Unit Large Storage Unit Improved Terrain Scanner > --- WEAPON ----------- EM Pulse Gun Light Assault Rifle > --- INVENTORY -------- Heat Sink Medium Matter Pod [Rating: 11] Favorites ----------- Power Light Ion Engine Engine Light Ion Engine Propulsion Aluminum Leg Leg Aluminum Leg Flight Unit Flight Unit Utility Small Storage Unit Device Improved Terrain Scanner Storage Small Storage Unit Weapon Light Assault Rifle Energy Gun EM Pulse Gun Ballistic Gun Light Assault Rifle Build | -11 -10 -9 ------- Run | Yrd Mat Mat Slots Evolved 2 | . . 2 Power 1 | . . 1 Propulsion . | . . . Utility 1 | . . 1 Weapon . | . . . Parts Attached 15 | 6 4 5 Power 3 | 1 1 1 Engine 3 | 1 1 1 Core . | . . . Reactor . | . . . Propulsion 4 | 1 1 2 Treads . | . . . Leg 3 | 1 1 1 Wheel . | . . . Hover . | . . . Flight 1 | . . 1 Utility 3 | 2 . 1 Device 1 | 1 . . Storage 2 | 1 . 1 Processor . | . . . Hackware . | . . . Protection . | . . . Artifact . | . . . Weapon 5 | 2 2 1 Energy Gun 1 | . 1 . Energy Cannon . | . . . Ballistic Gun 4 | 2 1 1 Ballistic Cannon . | . . . Launcher . | . . . Special Weapon . | . . . Impact Weapon . | . . . Slashing Weapon . | . . . Piercing Weapon . | . . . Special Melee Weapon . | . . . Unidentified Prototypes . | . . . Parts Lost 8 | . 3 5 Power 2 | . 1 1 Propulsion 2 | . 1 1 Utility . | . . . Weapon 4 | . 1 3 Highest Loss Streak 4 | . 2 4 To Critical Strikes . | . . . Average Slot Usage (%) 81 | . 82 80 Engine 10 | . 13 6 Leg 12 | . 12 13 Flight 3 | . . 6 Device 12 | . 14 11 Storage 17 | . 14 22 Energy Gun 8 | . 6 10 Ballistic Gun 16 | . 21 10 Naked Turns . | . . . Heaviest Build 36 | 11 12 36 Greatest Support 10 | 10 10 10 Greatest Overweight (x) 7 | 3 3 7 Average Overweight (x) 1 | 1 1 4 Largest Inventory Capacity 15 | 8 8 15 Average Capacity 10 | 7 8 15 Most Carried 5 | 3 5 3 Average Carried 2 | 2 3 2 Final Capacity 15 | 8 8 15 Final Carried 3 | 3 3 2 Class Distribution -------------------- 100% | Mutant Dominant Class ---------------- Mutant | -10/Materials Mutant | -9/Materials Resources | -11 -10 -9 ----------- Run | Yrd Mat Mat Matter Collected 549 | 399 108 42 Remotely . | . . . Salvage Created 608 | 220 204 184 Parts 50 | 24 11 15 Haulers Intercepted 1 | . . 1 Recyclers Shooed 1 | . 1 . Parts Field Recycled . | . . . Retrieved Matter . | . . . Parts Self-Destructed . | . . . Prevented . | . . . Kills | -11 -10 -9 ------- Run | Yrd Mat Mat Combat Hostiles Destroyed 8 | . 4 4 Guns 8 | . 4 4 Classes Destroyed 8 | 3 2 3 Worker 2 | 2 . . Tunneler 6 | 6 . . Hauler 1 | . . 1 Recycler 1 | 1 . . Watcher 1 | . 1 . Swarmer 2 | . . 2 Grunt 5 | . 4 1 Sentry 1 | . . 1 Best Kill Streak 2 | 2 2 2 Combat Bots Only 2 | . 2 2 Max Kills in Single Turn 1 | 1 1 1 Gunslinging . | . . . Exploded . | . . . Melee . | . . . Uniques/NPCs Destroyed . | . . . Combat | -11 -10 -9 -------- Run | Yrd Mat Mat Hostile Shots Fired 128 | . 44 84 Missed 29 | . 9 20 Damage Taken 1336 | . 516 820 Core 535 | . 133 402 Absorbed by Shields . | . . . Core Remaining (%) 73 | 100 46 . Volleys Fired 92 | 29 44 19 Largest 2 | 2 2 2 Hottest 60 | 40 60 60 Shots Fired 168 | 58 81 29 Gun 168 | 58 81 29 Cannon . | . . . Launcher . | . . . Special . | . . . Kinetic 135 | 58 58 19 Thermal . | . . . Explosive . | . . . Electromagnetic 33 | . 23 10 Robot Hit Streak 9 | 8 7 9 Robot Miss Streak 3 | 3 3 3 Penetration Max . | . . . Secondary Targets . | . . . Shots Hit Robots 105 | 37 47 21 Core Hits 41 | 17 13 11 Critical Kills . | . . . Critical Parts Destroyed . | . . . Critical Strikes . | . . . Melee Attacks . | . . . Impact . | . . . Slashing . | . . . Piercing . | . . . Sneak Attacks . | . . . Combat Hostiles . | . . . Follow-up Attacks . | . . . Damage Inflicted 972 | 323 436 213 Guns 972 | 323 436 213 Cannons . | . . . Explosions . | . . . Melee . | . . . Ramming . | . . . Kinetic 763 | 323 296 144 Thermal . | . . . Explosive . | . . . Electromagnetic 209 | . 140 69 Impact . | . . . Slashing . | . . . Piercing . | . . . Highest Corruption 1 | . 1 . Average Corruption 1 | . 1 . Corruption Purged . | . . . Corruption Blocked . | . . . Effects 3 | . 3 . Message Errors 1 | . 1 . Matter Fused 1 | . 1 . Weapon Failures 1 | . 1 . Overload Shots . | . . . Overflow Damage . | . . . Projectiles . | . . . Explosions . | . . . Melee . | . . . Knockbacks . | . . . Impact . | . . . Kinetic . | . . . Secondary . | . . . Self-Inflicted Damage . | . . . Shots . | . . . Rammed . | . . . Targets Rammed . | . . . Kicked . | . . . Crushed . | . . . Highest Temperature 107 | . 107 16 Average Temperature 27 | . 32 5 Received Heat Transfer 471 | . 315 156 Siege Activations . | . . . Robots Corrupted . | . . . Combat Hostiles . | . . . Parts Fried . | . . . Impact Corruptions . | . . . Robots Melted . | . . . Combat Hostiles . | . . . Parts Melted . | . . . Heat Transferred . | . . . Parts Sabotaged . | . . . Parts Stolen . | . . . Parts Stripped . | . . . Power Chain Reactions . | . . . Alert | -11 -10 -9 ------- Run | Yrd Mat Mat Peak Influence 170 | 45 170 91 Initial 29 | . 29 19 Average 40 | 25 59 28 Maximum Alert Level . | . . . Low Security (%) 100 | 100 100 100 Level 1 . | . . . Level 2 . | . . . Level 3 . | . . . Level 4 . | . . . Level 5 . | . . . High Security . | . . . Max Security . | . . . Squads Dispatched 1 | . . 1 Investigation . | . . . Extermination . | . . . Reinforcement 1 | . . 1 Assault . | . . . Garrison . | . . . Intercept . | . . . Searches Triggered . | . . . Construction Impeded . | . . . Haulers Reinforced . | . . . Active Scanning Responses . | . . . Cargo Convoy Interrupts . | . . . Stealth | -11 -10 -9 --------- Run | Yrd Mat Mat Distress Signals 1 | . 1 . Communications Jammed . | . . . Distress Signals . | . . . Times Spotted 18 | . 9 9 Peak Tracking Total 6 | . 3 6 Tactical Retreats 1 | . 1 . Traps | -11 -10 -9 ------- Run | Yrd Mat Mat Traps Triggered 1 | . 1 . Indirectly . | . . . Trap Hack Attempts . | . . . Triggered . | . . . Disarmed . | . . . Reprogrammed . | . . . Reused . | . . . Traps Extracted . | . . . Installed . | . . . Triggered 2 | . 2 . Machines | -11 -10 -9 ---------- Run | Yrd Mat Mat Machines Disabled 2 | . 2 . Max in Single Turn 2 | . 2 . Machines Repaired . | . . . Machines Dismantled . | . . . Machines Sabotaged . | . . . Overloaded Fab Kills . | . . . Hacking | -11 -10 -9 --------- Run | Yrd Mat Mat Machines Accessed . | . . . Terminals . | . . . Fabricators . | . . . Repair Stations . | . . . Recycling Units . | . . . Scanalyzers . | . . . Garrison Access . | . . . Total Hacks . | . . . Successful . | . . . Failed . | . . . Catastrophic . | . . . Database Lockouts . | . . . Manual . | . . . Terminals . | . . . Fabricators . | . . . Repair Stations . | . . . Recycling Units . | . . . Scanalyzers . | . . . Garrison Access . | . . . Terminal Hacks . | . . . Fabricator Hacks . | . . . Repair Station Hacks . | . . . Recycling Unit Hacks . | . . . Scanalyzer . | . . . Garrison Access Hacks . | . . . Unauthorized Hacks . | . . . Terminals . | . . . Fabricators . | . . . Repair Stations . | . . . Recycling Units . | . . . Scanalyzers . | . . . Garrison Access . | . . . Data Cores Recovered . | . . . Used . | . . . Hacking Detections . | . . . Full Trace Events . | . . . Feedback Events . | . . . Feedback Blocked . | . . . Robot Schematics Acquired . | . . . Robots Built . | . . . Authchips . | . . . Time . | . . . Total Robot Build Rating . | . . . Part Schematics Acquired . | . . . Parts Built . | . . . Authchips . | . . . Time . | . . . Total Part Build Rating . | . . . Parts Repaired . | . . . Time . | . . . Parts Recycled . | . . . Recycled Matter . | . . . Retrieved Matter . | . . . Retrieved Components . | . . . Parts Scanalyzed . | . . . Part Schematics Acquired . | . . . Parts Damaged . | . . . Bothacking | -11 -10 -9 ------------ Run | Yrd Mat Mat Used RIF Installer . | . . . Robots Hacked . | . . . Non-combat . | . . . Combat . | . . . Robot Hacks Applied . | . . . Relay Couplers Released . | . . . Fabnet Peak Effective % . | . . . Robots Rewired . | . . . Allies Hacked . | . . . Hacks Repelled . | . . . Allies | -11 -10 -9 -------- Run | Yrd Mat Mat Total Allies . | . . . Largest Group . | . . . Highest-Rated Group . | . . . Highest-Rated Ally . | . . . Total Orders . | . . . Ally Attacks . | . . . Total Damage . | . . . Kills . | . . . Allies Corrupted . | . . . Allies Melted . | . . . Intel | -11 -10 -9 ------- Run | Yrd Mat Mat Robot Analysis Total . | . . . Derelict Logs Recovered . | . . . Drone Launches . | . . . Drone Recoveries . | . . . Exploration | -11 -10 -9 ------------- Run | Yrd Mat Mat Turns Passed 1197 | 257 482 458 Spaces Moved 332 | 98 166 68 Core 38 | 23 15 . Treads . | . . . Legs 268 | 75 151 42 Wheels . | . . . Hover . | . . . Flight 26 | . . 26 Fastest Speed 50 | 50 190 260 Average Speed 229 | 171 190 406 Slowest Speed 610 | 200 200 610 Overloaded Moves . | . . . Propulsion Burnouts . | . . . Robots Hopped . | . . . Cave-ins Triggered . | . . . Exploration Rate (%) 13 | 6 25 8 Regions Visited 2 Branch Regions . Pre-discovered Areas . | . . . Known Exits Taken . | . . . Unknown Exits Taken 2 | 1 1 . Scrap Searched . | . . . Spaces Dug . | . . . Terrain Destroyed . | . . . Melee . | . . . Projectile . | . . . AOE . | . . . Terrain Rammed . | . . . Walls Destroyed . | . . . Machines Disabled . | . . . Actions | -11 -10 -9 --------- Run | Yrd Mat Mat Total 628 | 141 262 225 Wait 170 | . 42 128 Move 330 | 97 165 68 Hop . | . . . Pick Up 18 | 9 5 4 Fast Attach . | . . . Attach 14 | 6 3 5 Detach . | . . . Swap 1 | . 1 . Drop 3 | . 2 1 Fire 92 | 29 44 19 Melee . | . . . Ram . | . . . Kick . | . . . Crush . | . . . Escape Stasis . | . . . Rewire . | . . . Trap . | . . . Miscellaneous . | . . . Route ------- -11/Scrapyard -10/Materials (discovered 2 exits: [*Mat] / [*Min]) -9/Materials History --------- Turn | Location | Event 49 | -11/Scrapyard | Discovered new exit (range 15) 258 | -11/Scrapyard | Entered Materials 316 | -10/Materials | Build established: Mutant 319 | -10/Materials | Discovered new exit (range 7) 435 | -10/Materials | Discovered new exit (range 10) 645 | -10/Materials | Core integrity fell below 50% 740 | -10/Materials | Entered another Materials area 740 | -9/Materials | Evolved 2 slots: Power x1, Utility x1 1181 | -9/Materials | Core integrity fell below 50% 1193 | -9/Materials | Core integrity fell below 20% 1198 | -9/Materials | Destroyed by S-10 Pest with Light Assault Rifle Last Messages --------------- 01118_ K-01 Serf collects debris. 01122_ Y-45 Defender destroyed. 01123_ K-01 Serf collects debris. 01128_ Acquired Imp. Ion Engine. 01137_ Acquired 12 matter. 01147_ Imp. Ion Engine severed. 01150_ C-30 ARC bursts open, deploying its payload. 01150_ S-10 Pest unfolds itself. 01154_ EM Pulse Gun destroyed. 01154_ S-10 Pest destroyed. 01156_ R-06 Scavenger collects Hpw. Tractor Beam. 01158_ S-10 Pest destroyed. 01159_ Lgt. Assault Rifle destroyed. 01159_ R-06 Scavenger collects Sml. Matter Pod. 01165_ Acquired Lgt. Assault Rifle. 01168_ Aluminum Leg severed. 01185_ Lgt. Assault Rifle destroyed. 01186_ Aluminum Leg destroyed. Map ----- +----------------------------------------------------+ | | | | | | | | | | | | | | | | | | | | | | | | | | | | | | | | | | | | | ?#?#???#??#?????#?????##########?#???????????????? | | ??#????#?????#??##???## ##????????????????? | | ??????????#???#?#?#??## g""""" #?????????????????? | | ########?#??????#????# """""w#?????????????????? | | # #?????#?###????# """"" #?????????????????? | | # #???#???#?#????# g #??? ? ???????????? | | # """ #???#?????##???# ls*= ##???? ???????????? | | # """ #??#?#??????#??# "@"%= #?# ??????? ??????? | | # """ #????????????#?# "R"=%= #?????????????????? | | # % #??????#????#??# """%[* #??#?????#????????? | | ####+######################+######## ??????? | | # != = !![ ??????? | | # !!! ??????? | | # !!%! """????????? | | ####+##################### """?????????? | | # #?#????#?##??????# !! ""??????????? | | # """##?????? ? ? ????# ! ""??????????? | | # """#???#?#??"""?????+ "??????????? | | # """#?#???????T"? ???# ?????????? | | # #???##?? ? ? ????# ????????? | | #########???#????????????# ?????????? | | ????#?###??#??????#??#???#######+#######?????????? | | ???#?#?###?????#??????? ??#??????????????????????? | | ???? ???#???????????????????????????????????????? | | ??????? ??????????????????????????? ?????????????? | | ???????"?????????????????????#?? ????????????????? | | ??????????????#??????????????????????????????????? | | ?????????????????????????????????????????????????? | | ?????"???????????????????????????????????????????? | | ?????????????????????????????????????????????????? | | ?????????????????????????????????????????????????? | | ?????????????????????????????????????????????????? | +----------------------------------------------------+ Best States ------------- Heat Dissipation 28 Energy Generation 12 Energy Capacity 265 Matter Stores 300 Matter Capacity 300 Sight Range 16 Terrain Scan Range 16 Terrain Scan Density 10 Evasion (%) 55 Item Schematics ----------------- None Robot Schematics ------------------ None Fabricated ------------ Nothing Alien Tech Used ----------------- None Achievements -------------- None Challenges ------------ None Game ------ Seed LargeThunderInjector Manual? 0 Play Time 00:14:31 Cumulative 6.7 hours Start 2024.07.31 @ 22:31:37 End 2024.07.31 @ 22:46:04 Sessions 1 Manual Loads 0 Difficulty Rogue Special Mode None Game No. 9 Rogue 9 Adventurer 0 Explorer 0 Win Type - Total 0 Types 0/0/0/0/0/0/0/0/0 Lore% 8 Gallery% 9 Achievement% 12 Wizard Run 0 Options --------- Layout 1 ASCII 0 Keyboard 0 Movement Mouse Keybinds 0 Fullscreen 1 Font 32/SmallcapsGlow Map View 50x35 Zoom Use 0% Tactical HUD 1 Map Filters NONE Filters NONE Steam 1 RUN: 3b376685-baef-4a3d-9afe-b8e18ab5db30